[Event "SixDays Budapest January-IMA 2023"]
[Site "Budapest"]
[Date "2023.01.24"]
[Round "2.1"]
[White "Ongut, Tamas Gunes"]
[Black "Magold, Filip"]
[Result "0-1"]
[ECO "A07"]
[WhiteElo "2340"]
[BlackElo "2230"]
[Annotator "TA"]
[PlyCount "126"]
[EventDate "2023.01.23"]
[EventType "tourn"]
[EventCountry "HUN"]
[SourceTitle "playchess.com"]
[Source "ChessBase"]
[SourceQuality "1"]
[TimeControl "5400+30"]

{[%evp 9,126,16,18,18,14,15,22,13,30,11,8,-7,-2,-13,0,-12,16,0,21,15,16,15,14,15,24,12,16,0,0,-20,0,0,4,5,5,-3,-4,-23,-29,-39,41,50,44,8,7,6,8,0,0,0,0,0,0,0,0,-3,0,0,0,0,0,-18,0,-35,-23,-23,-24,-25,-25,-25,-35,-46,-31,-60,0,-20,0,0,0,-20,-20,-20,-20,-20,-24,-32,-8,-8,-8,-11,-8,-8,-8,-8,-8,-8,-8,-62,-41,-54,-60,-1081,-33,-40,-48,-233,-233,-643,-636,-29987,-29988,-29988,-29989,-29989,-29966,-29984,-29985,-29990,-29991]} 1. Nf3 {[%emt 0:07:50]} Nf6 {[%emt 0:01:45]} 2. g3 {[%emt 0:00:10]} d5 {[%emt 0:00:05]} 3. Bg2 {[%emt 0:00:05]} c6 {[%emt 0:00:49]} 4. O-O {[%emt 0:00:10]} Bg4 {[%emt 0:00:50]} 5. h3 {[%emt 0:00:08]} Bh5 {[%emt 0:00:30] [#]} 6. c4 $1 {[%emt 0:00:08] A07: Réti Opening: New York and Capablanca Systems.} e6 {[%emt 0:00:45]} 7. d4 {[%emt 0:00:08] The main line 7.d4 scores better than 7.d3.} Nbd7 {[%emt 0:01:18]} 8. cxd5 {[%emt 0:00:09] The position is equal.} cxd5 {[%emt 0:00:59]} 9. Qb3 {[%emt 0:00:22]} Qb6 {[%emt 0:00:41]} 10. Qxb6 Nxb6 {[#]} 11. Bf4 $146 {[%emt 0:02:05]} ({Predecessor:} 11. g4 Bg6 12. Ne5 Bb4 13. a3 Be7 14. Nxg6 hxg6 15. Nc3 Rc8 16. a4 Nc4 17. a5 {0-1 Magalashvili,D (2508)-Kelires,A (2531) Kavala op 27th 2018 (8)}) 11... Rc8 {[%emt 0:02:45]} 12. Nc3 {[%emt 0:01:07]} a6 {[%emt 0:03:00]} 13. Rac1 {[%emt 0:07:00][%cal Oe2e4]} (13. g4 $5 Bg6 $8 14. Rac1 $11) 13... Be7 {[%emt 0:11:10]} 14. Ne5 {[%emt 0:02:32]} O-O {[%emt 0:03:03]} 15. g4 {[%emt 0:02:21]} Bg6 {[%emt 0:00:04]} 16. h4 {[%emt 0:11:59] With the idea h5.} h6 {[%emt 0:00:40]} 17. Nxg6 {[%emt 0:21:12]} (17. Bh3 $5 {[%cal Re5g6]} Nfd7 18. Nxg6 fxg6 19. Bg3 $11) 17... fxg6 {[%emt 0:00:05]} 18. Bg3 {[%emt 0:00:08]} Rc4 {[%emt 0:16:07]} 19. e4 {[%emt 0:03:39]} dxe4 {[%emt 0:08:21]} (19... Nxg4 20. exd5 Rxd4 21. dxe6 $16) 20. Nxe4 {[%emt 0:00:32]} Nxe4 {[%emt 0:00:33]} ({Don't play} 20... Nxg4 21. Nc5 $16) 21. Bxe4 {[%emt 0:00:07]} Rxd4 {[%emt 0:00:24]} 22. f3 {[%emt 0:06:32]} Nd5 {[%emt 0:05:24]} 23. Rfd1 {[%emt 0:13:12] [#]} Bc5 {[%emt 0:11:42][%mdl 64] Deflection} 24. Kh2 {[%emt 0:01:07]} (24. Rxd4 Bxd4+) 24... Ne3 {[%emt 0:06:18]} (24... g5 $15) 25. Rxd4 $14 {[%emt 0:00:08]} Bxd4 {[%emt 0:00:01]} 26. Bxb7 {[%emt 0:08:50] A strong pair of Bishops.} (26. b3 $5) 26... Bxb2 {[%emt 0:03:57]} 27. Rb1 {[%emt 0:00:12]} Bd4 {[%emt 0:02:40]} 28. Bxa6 {[%emt 0:04:53]} Rxf3 {[%emt 0:02:08]} 29. Be2 {[%emt 0:00:07]} Rf7 {[%emt 0:05:54]} (29... Nxg4+ $2 30. Kg2 Rxg3+ 31. Kxg3 $18) 30. Rb8+ {[%emt 0:00:28]} Kh7 {[%emt 0:00:13]} 31. Rd8 {[%emt 0:04:21] Dodges Ra7} e5 {[%emt 0:10:12]} 32. Re8 {[%emt 0:02:36]} h5 {[%emt 0:02:38]} 33. gxh5 {[%emt 0:00:09]} gxh5 {[%emt 0:00:57]} 34. Bd3+ {[%emt 0:00:08]} (34. Bxe5 $2 {perishes.} Rf2+ 35. Kh3 Bxe5 36. Rxe5 (36. Bxh5 $2 Rh2#) (36. Bd3+ $2 g6 $19) 36... Rxe2 $19) 34... g6 {[%emt 0:00:05]} 35. Kh3 {[%emt 0:01:05]} Nd5 {[%emt 0:01:11]} 36. Bc4 {[%emt 0:00:30]} (36. Re6 $5 {[%cal Rd3g6]} Rf6 37. Rxf6 Nxf6 38. Kg2 $11) 36... Nf4+ {[%emt 0:00:07]} 37. Bxf4 $1 {[%emt 0:01:41]} Rxf4 $11 {[%emt 0:00:01][%mdl 4096] Endgame KRB-KRB} 38. Re7+ {[%emt 0:00:08]} Kh8 {[%emt 0:00:23]} 39. Re8+ {[%emt 0:00:44]} Kg7 {[%emt 0:00:05] Threatens to win with ...Bf2.} 40. Re7+ {[%emt 0:00:29]} Kf8 {[%emt 0:00:07]} 41. Re6 {[%emt 0:00:23]} Kg7 {[%emt 0:01:06] Threatening ...Bf2.} 42. Re7+ $1 {[%emt 0:00:07]} Kh8 {[%emt 0:01:22]} (42... Kh6 $5 {[%cal Rd4c5]} 43. Bg8 g5 44. hxg5+ Kxg5 $15) 43. Re8+ {[%emt 0:00:07]} Kh7 {[%emt 0:00:02]} 44. Re7+ $1 {[%emt 0:00:06]} Kh6 {[%emt 0:00:09] White must now prevent ...Bc5.} 45. Bg8 $1 {[%emt 0:00:29][%csl Gg8][%cal Re7h7]} g5 {[%emt 0:00:01]} 46. hxg5+ {[%emt 0:00:12]} Kxg5 {[%emt 0:00:05]} 47. Bd5 {[%emt 0:00:42] Prevents e4.} Rf1 {[%emt 0:01:10]} 48. Rg7+ {[%emt 0:00:07]} Kh6 {[%emt 0:00:03]} 49. Rg3 {[%emt 0:00:48]} Re1 {[%emt 0:00:53]} 50. Bf7 {[%emt 0:00:40]} Rh1+ {[%emt 0:01:27]} 51. Kg2 {[%emt 0:00:09]} Rg1+ {[%emt 0:00:57]} 52. Kh2 {[%emt 0:00:06]} Rf1 {[%emt 0:00:32]} 53. Bc4 {[%emt 0:00:42]} (53. Rg6+ $11 Kh7 54. Be8) 53... Rf2+ {[%emt 0:00:13]} 54. Rg2 {[%emt 0:00:07]} Rf4 {[%emt 0:00:31]} 55. Kh3 $2 {[%emt 0:00:40][%mdl 8192]} (55. Bb5 $15) 55... e4 $2 {[%emt 0:00:24]} (55... Bf2 $1 $19 {[%csl Gf2][%cal Rf4h4]} 56. Rg8 Rxc4 57. Rh8+ Kg6 58. Rg8+ Kf7) 56. Rg8 {[%emt 0:01:27] Prevents Rh4+.} Rf3+ {[%emt 0:00:53]} 57. Kg2 $2 {[%emt 0:00:10] [#]} (57. Rg3 $15) 57... Rf2+ $1 $19 {[%emt 0:00:16]} 58. Kg3 $2 {[%emt 0:00:32] [#]} (58. Kh1) 58... Rc2 $1 {[%emt 0:00:10] ( -> ...Be5+)} 59. Be6 {[%emt 0:01:34]} Be5+ {[%emt 0:00:29] Black mates.} 60. Kh4 {[%emt 0:00:07]} e3 {[%emt 0:00:44][%cal Be4e3,Be3e2][%mdl 32]} 61. Rg1 {[%emt 0:01:15]} Rh2+ {[%emt 0:00:52]} 62. Bh3 {[%emt 0:00:08]} e2 {[%emt 0:00:36]} 63. Rb1 {[%emt 0:00:34]} Rf2 {[%emt 0:00:21] Weighted Error Value: White=0.36/Black=0.21 (precise)} 0-1

[Event "SixDays Budapest January-IMA 2023"]
[Site "Budapest"]
[Date "2023.01.24"]
[Round "2.3"]
[White "Orso, Miklos"]
[Black "Szeberenyi, Adam"]
[Result "1-0"]
[ECO "A48"]
[WhiteElo "2256"]
[BlackElo "2331"]
[Annotator "TA"]
[PlyCount "111"]
[EventDate "2023.01.23"]
[EventType "tourn"]
[EventCountry "HUN"]
[SourceTitle "playchess.com"]
[Source "ChessBase"]
[SourceQuality "1"]
[TimeControl "5400+30"]

{[%evp 15,111,0,6,0,10,0,-25,-23,0,0,2,-15,0,-15,4,4,4,6,14,8,10,-74,-71,-66,-71,-68,-63,-72,-63,-78,-65,-64,-76,-84,-82,-82,-82,-82,-71,-84,-58,-67,-73,-47,0,-4,-12,-1,0,-53,0,0,0,0,0,0,0,0,0,0,0,0,0,0,42,52,322,309,359,329,502,474,1446,1441,1002,925,5895,5354,5077,4936,29982,29983,29987,29988,29988,29987,29988,29989,29989,29990,29990,29989,29989,29990,29990,29991,29991,29992]} 1. Nf3 {[%emt 0:00:04]} Nf6 {[%emt 0:01:31]} 2. d4 {[%emt 0:00:18]} g6 {[%emt 0:02:10]} 3. c4 {[%emt 0:00:17]} Bg7 {[%emt 0:00:05]} 4. Nc3 {[%emt 0:00:10]} d5 {[%emt 0:00:10]} 5. cxd5 {[%emt 0:02:46]} Nxd5 {[%emt 0:00:05]} 6. h3 {[%emt 0:00:12]} O-O {[%emt 0:03:35]} 7. e4 {[%emt 0:04:03]} Nxc3 {[%emt 0:00:03]} 8. bxc3 {[%emt 0:00:09]} c5 {[%emt 0:01:13]} 9. Be3 {[%emt 0:01:58] D85: Exchange Grünfeld: Unusual White 7th moves and lines with 7 Nf3.} (9. dxc5 Bxc3+ 10. Bd2 Bxa1 11. Qxa1 Nc6 $17) 9... Nc6 {[%emt 0:17:05]} 10. Qd2 {[%emt 0:01:55]} (10. dxc5 Bxc3+ 11. Bd2 Bxa1 12. Qxa1 Re8 $17) 10... Qa5 {[%emt 0:00:45]} 11. Rd1 {[%emt 0:13:21] Black has an edge.} b6 {[%emt 0:09:31]} 12. Be2 {[%emt 0:04:40]} Ba6 {[%emt 0:00:40] [#]} 13. Bxa6 $146 {[%emt 0:09:39]} ({Predecessor:} 13. O-O Rfd8 14. Bxa6 Qxa6 15. Bh6 cxd4 16. Bxg7 Kxg7 17. cxd4 Rac8 18. d5 Na5 19. Nd4 {1-0 Maslianok,S-Stambulian,A (2310) Krasnodar op 1997}) 13... Qxa6 {[%emt 0:01:14]} 14. Qe2 {[%emt 0:00:36]} Qxe2+ {[%emt 0:04:07]} 15. Kxe2 {[%emt 0:00:09]} cxd4 {[%emt 0:03:07]} 16. cxd4 {[%emt 0:00:10]} Rac8 {[%emt 0:07:46]} 17. Rc1 {[%emt 0:06:25]} Nb4 {[%emt 0:00:46][%cal Bc6b4,Bb4c2,Bc2a3,Ba3b5][%mdl 32]} 18. a3 {[%emt 0:01:13]} (18. a4 $11 {remains equal.}) 18... Nc2 $17 {[%emt 0:02:25]} 19. Kd3 {[%emt 0:00:51]} Nxa3 {[%emt 0:00:40]} 20. Ra1 {[%emt 0:00:14]} Nb5 {[%emt 0:04:41]} 21. Rhb1 {[%emt 0:09:47] [#]} Rc3+ $1 {[%emt 0:00:15]} 22. Kd2 {[%emt 0:00:17]} Ra3 {[%emt 0:00:05]} 23. Rxa3 {[%emt 0:04:44]} Nxa3 {[%emt 0:00:26]} 24. Rc1 {[%emt 0:01:59]} f5 {[%emt 0:05:07]} 25. Kd3 {[%emt 0:04:06]} fxe4+ {[%emt 0:02:35]} 26. Kxe4 {[%emt 0:00:02]} Nb5 {[%emt 0:00:13] Against Rc7} 27. Rc6 {[%emt 0:15:18]} Nd6+ {[%emt 0:01:33]} 28. Kd5 {[%emt 0:05:55]} Rd8 {[%emt 0:04:17]} 29. Ke6 {[%emt 0:00:55]} Nf5 {[%emt 0:01:44] And now ...Bf6 would win.} (29... Bf6 $5 {[%cal Rd6e8]} 30. Bg5 Bxg5 31. Nxg5 Nf5 $17) 30. g4 {[%emt 0:02:01]} Nxe3 {[%emt 0:06:48]} (30... Nxd4+ 31. Nxd4 Bxd4 32. Kxe7 Bxe3 33. Kxd8 Bxf2 34. Rc7 $16) 31. fxe3 $11 {[%emt 0:00:03][%mdl 4096] Endgame KRB-KRN} Bf8 {[%emt 0:00:51]} 32. d5 {[%emt 0:05:30]} (32. Rc7 $11) 32... b5 {[%emt 0:00:35]} (32... a5 $1 $15) 33. Ra6 {[%emt 0:01:41]} b4 {[%emt 0:04:58] Hoping for ...b3.} 34. Nd4 {[%emt 0:00:06]} Rb8 {[%emt 0:00:44]} 35. Nb3 {[%emt 0:00:56][%cal Oe3e4]} Rc8 {[%emt 0:02:37]} 36. Rc6 {[%emt 0:00:07]} (36. Rxa7 Rc3 37. Nd4 Rxe3+ 38. Kd7 Rd3 $17) 36... Ra8 {[%emt 0:00:03] Threatens to win with ...a5.} 37. Rc5 {[%emt 0:00:29]} Rd8 $1 {[%emt 0:05:44]} 38. Rc6 {[%emt 0:00:15]} Ra8 {[%emt 0:03:56] White must now prevent ...a5.} 39. Rc5 {[%emt 0:00:26]} Bh6 {[%emt 0:00:34]} (39... Rd8 $5 {[%cal Rd8d6]}) 40. e4 {[%emt 0:00:42][%cal Oc5b5] Rb5! would be deadly.} Rf8 $2 {[%emt 0:00:01][%mdl 8192] [#] This costs Black the game.} (40... Rb8 $14) 41. Rb5 $1 $18 {[%emt 0:01:02]} (41. Kxe7 Bg5+ 42. Kd7 Rd8+ 43. Kc7 Re8 $18) 41... Rf6+ {[%emt 0:01:08]} 42. Kxe7 {[%emt 0:00:40]} Rf3 {[%emt 0:00:02]} (42... Bg5 $142 43. Kd7 (43. Rxb4 $2 Rb6+ {[%mdl 64] Discovered Attack} 44. Kd7 Rxb4 $19) 43... Bf4 44. Rxb4 Kg7) 43. Rb8+ {[%emt 0:00:10]} Bf8+ {[%emt 0:00:05] [#]} (43... Kg7 $142 44. Nd4 Bg5+ 45. Kd6 Re3 46. Ne6+ Kh6 47. Rxb4 Bh4) 44. Rxf8+ $1 {[%emt 0:00:12][%mdl 512]} Rxf8 {[%emt 0:00:19] KR-KN} 45. d6 {[%emt 0:00:46]} Rf7+ {[%emt 0:04:02]} 46. Ke6 {[%emt 0:00:48]} Kg7 {[%emt 0:00:22]} 47. e5 {[%emt 0:00:34]} h5 {[%emt 0:02:38]} 48. g5 {[%emt 0:01:17] White mates.} h4 {[%emt 0:00:18]} 49. d7 {[%emt 0:00:07]} Rf8 {[%emt 0:00:04]} 50. Ke7 {[%emt 0:00:21]} Rf7+ {[%emt 0:00:11]} 51. Kd6 {[%emt 0:00:13]} Rf3 {[%emt 0:01:27]} 52. Nd4 {[%emt 0:01:15]} ({Weaker is} 52. d8=R Rxb3 53. Rd7+ Kf8 $11) 52... Rd3 {[%emt 0:00:32]} 53. Kd5 {[%emt 0:00:10]} (53. d8=R {gets mated.} Rxd4+ 54. Ke7 Rxd8 55. Kxd8 b3 56. e6 b2 57. e7 b1=Q 58. e8=Q Qb8+ 59. Ke7 Qxe8+ 60. Kxe8 a5 61. Ke7 a4 62. Ke6 a3 63. Ke5 a2 64. Ke4 a1=Q 65. Ke3 Qc3+ 66. Ke2 Qxh3 67. Kd2 Qg4 68. Kc2 h3 69. Kd2 h2 70. Kd3 h1=Q 71. Kd2 Qhd1+ 72. Ke3 Qgf3#) 53... b3 54. d8=Q {[%emt 0:00:12]} b2 {[%emt 0:00:27]} 55. Qc7+ {[%emt 0:00:19]} Kh8 {[%emt 0:00:06]} 56. Qb8+ {[%emt 0:00:08] Weighted Error Value: White=0.06 (flawless) /Black=0.36} ({Not} 56. Qxa7 b1=Q $11) 1-0

[Event "SixDays Budapest January-IMA 2023"]
[Site "Budapest"]
[Date "2023.01.24"]
[Round "2.5"]
[White "Leszko, Bence"]
[Black "Polyik, Peter"]
[Result "1-0"]
[ECO "B22"]
[WhiteElo "2298"]
[BlackElo "2323"]
[Annotator "TA"]
[PlyCount "71"]
[EventDate "2023.01.23"]
[EventType "tourn"]
[EventCountry "HUN"]
[SourceTitle "playchess.com"]
[Source "ChessBase"]
[SourceQuality "1"]
[TimeControl "5400+30"]

{[%evp 23,71,0,8,-6,0,-4,0,-14,-16,-143,-127,-128,-135,-136,-141,-133,-145,-136,-126,-133,-149,-134,-40,-127,-95,-122,-118,-103,0,0,17,14,745,739,774,783,756,775,785,767,894,864,1320,1200,2827,1714,29985,714,621,610]} 1. e4 {[%emt 0:11:56][%cal Be2e4,Be4e5][%mdl 32]} c5 {[%emt 0:00:07]} 2. c3 {[%emt 0:00:06]} Nf6 {[%emt 0:00:08]} 3. e5 {[%emt 0:00:16]} Nd5 {[%emt 0:00:07]} 4. Nf3 {[%emt 0:00:07]} d6 {[%emt 0:00:50]} 5. exd6 {[%emt 0:00:25]} e6 {[%emt 0:00:19]} 6. d4 {[%emt 0:00:21]} cxd4 {[%emt 0:00:55]} 7. Nxd4 {[%emt 0:01:59]} Bxd6 {[%emt 0:00:12]} 8. g3 {[%emt 0:00:09]} Nc6 {[%emt 0:03:41]} 9. Bg2 {[%emt 0:00:19]} Nxd4 {[%emt 0:00:27]} 10. Qxd4 {[%emt 0:00:19]} O-O {[%emt 0:00:39]} 11. O-O {[%emt 0:00:11]} Qc7 {[%emt 0:05:55]} 12. Nd2 {[%emt 0:09:27] 12.c4 might become the main line.} Bd7 {[%emt 0:14:27]} 13. Ne4 {[%emt 0:03:36] aiming for Nxd6. B22: Sicilian: 2 c3.} Be5 {[%emt 0:01:01]} (13... Bb5 {looks sharper.} 14. Re1 Be7 15. Ng5 Bc6) 14. Qd3 {[%emt 0:00:54]} Rac8 {[%emt 0:09:00]} 15. Rd1 {[%emt 0:06:22] [#] The position is equal.} Rfd8 $146 {[%emt 0:05:45] Strongly threatening ...Ba4.} ({Predecessor:} 15... Ba4 16. Re1 h6 17. Qe2 Rfd8 18. Nc5 Qxc5 19. Qxe5 Bc2 20. Qe2 Ba4 21. Bxh6 gxh6 22. Qg4+ Kh7 23. Qxa4 Rd6 24. Rad1 Rcd8 25. Qe4+ f5 26. Qe5 {1-0 Magem Badals,J (2505)-Martin Gonzalez,A (2405) ESP-ch playoff 1993 (5)}) 16. Bg5 {[%emt 0:02:50]} (16. Ng5 $11 {keeps the balance.} Nf6 17. Qe2) 16... f6 $17 {[%emt 0:01:33]} 17. Be3 {[%emt 0:00:17]} Ba4 18. Rdc1 {[%emt 0:25:22] [#]} Nf4 {[%emt 0:19:50][%mdl 576] Repels Qe2. Discovered Attack} 19. Qf1 {[%emt 0:00:07]} Nd3 {[%emt 0:00:29]} 20. Rcb1 {[%emt 0:03:29]} Bc2 {[%emt 0:02:50]} 21. Qe2 {[%emt 0:02:50]} Bxb1 {[%emt 0:01:09]} 22. Rxb1 {[%emt 0:00:01] [#]} Qd7 {[%emt 0:04:35]} (22... Qc4 $1 $17 23. b3 Qa6) 23. h4 {[%emt 0:08:43]} ({Better is} 23. Bxa7 $15 Qa4 24. Bb6) 23... b6 {[%emt 0:02:15]} 24. f4 {[%emt 0:02:41]} Bb8 {[%emt 0:01:42]} 25. Bh3 {[%emt 0:02:47]} Qd5 {[%emt 0:04:54]} ({Black should play} 25... f5 $17 26. Bd4 e5 27. Qxd3 exd4 28. cxd4 Qd5) 26. Bd4 $1 $11 {[%emt 0:01:14]} f5 {[%emt 0:02:23]} (26... Qxa2 $2 27. Nxf6+ (27. Qxd3 f5 $16) 27... Kf7 28. Qxd3 (28. Nxh7 $2 {is the wrong capture.} Qxb1+ 29. Bf1 Bxf4 $19) 28... Rxd4 29. cxd4 $18) 27. Ng5 {[%emt 0:00:41][%cal Be4g5,Bg5e6,Be6f4,Bf4g6][%mdl 32] And now Qh5 would win.} e5 $2 {[%emt 0:04:53][%mdl 8192] Loses the game.} (27... Qxa2 $2 28. Qxd3 h6 29. Nf3 $16) (27... Bxf4 $11 28. Qxd3 Be5) 28. Bxf5 $18 {[%emt 0:00:25]} Nc5 {[%emt 0:01:39]} 29. Bxh7+ {[%emt 0:03:40] This pair of bishops is nice.} Kf8 {[%emt 0:00:12]} 30. fxe5 {[%emt 0:00:08]} Ke7 {[%emt 0:05:20]} 31. Bf5 {[%emt 0:00:10]} Nd7 {[%emt 0:02:00]} 32. Ne6 {[%emt 0:02:08] Black must now prevent Nf4.} Rg8 {[%emt 0:01:34]} 33. Nf4 {[%emt 0:01:15]} Qxa2 {[%emt 0:00:44] Black is weak on the light squares} 34. Rd1 {[%emt 0:00:04] White threatens Ng6+ and mate.} Qc4 {[%emt 0:00:52]} 35. Qxc4 {[%emt 0:01:22]} (35. Ng6+ $142 Ke8 36. Bxd7+ {[%mdl 64] Remove Defender} Kxd7 37. Bc5+ Qd5 38. Rxd5+ Kc7 39. Qa6 Rcd8 40. Bd6+ Rxd6 41. exd6+ Kc6 42. Ne7+ Kd7 43. Qa4+ Kd8 44. Qc6 Bc7 45. Re5 Rh8 46. dxc7#) 35... Rxc4 {[%emt 0:00:02]} 36. Ng6+ {[%emt 0:00:07] Excellently played by Leszko!   Weighted Error Value: White=0.26 (precise) /Black=0.58} 1-0

[Event "SixDays Budapest January-IMA 2023"]
[Site "Budapest"]
[Date "2023.01.24"]
[Round "3.1"]
[White "Polyik, Peter"]
[Black "Ongut, Tamas Gunes"]
[Result "1/2-1/2"]
[ECO "B00"]
[WhiteElo "2323"]
[BlackElo "2340"]
[Annotator "TA"]
[PlyCount "114"]
[EventDate "2023.01.23"]
[EventType "tourn"]
[EventCountry "HUN"]
[SourceTitle "playchess.com"]
[Source "ChessBase"]
[SourceQuality "1"]
[TimeControl "5400+30"]

{[%evp 9,114,48,44,56,50,43,54,54,72,68,79,79,81,79,127,55,90,33,29,24,15,-25,-27,-23,-11,-76,-66,-72,-79,-86,-75,-101,-30,-37,-13,-19,-13,-69,-33,-46,0,0,0,0,-6,-23,0,-70,-68,-62,-67,-102,-35,-161,-175,-355,-355,-355,-265,-354,-353,-340,-332,-332,-329,-835,-804,-1036,-185,-185,-185,-185,-185,-185,-185,-185,-8,-8,-8,-49,-8,-8,-8,-8,-8,-8,-8,-8,-8,-8,-8,-8,-8,-49,-49,-49,-49,-49,-49,-49,0,0,0,-8,-8,-8,-8]} 1. e4 {[%emt 0:00:04]} Nc6 {[%emt 0:07:43]} 2. d4 {[%emt 0:00:16]} d5 {[%emt 0:00:14]} 3. e5 {[%emt 0:00:41]} Bf5 {[%emt 0:00:08]} 4. c3 {[%emt 0:00:15]} f6 {[%emt 0:00:31]} 5. f4 {[%emt 0:01:50]} Nh6 {[%emt 0:01:59]} 6. Nd2 {[%emt 0:03:52] B00: Queen's Fianchetto Defence, Nimzowitsch Defence.} e6 {[%emt 0:01:01]} 7. Ndf3 {[%emt 0:01:46]} Be7 {[%emt 0:02:31]} 8. Bd3 {[%emt 0:01:33] White is slightly better.} fxe5 {[%emt 0:02:34]} 9. fxe5 {[%emt 0:00:59]} O-O {[%emt 0:15:18]} 10. Ne2 {[%emt 0:14:33]} Bxd3 {[%emt 0:06:26]} 11. Qxd3 {[%emt 0:00:18]} Nf5 {[%emt 0:04:36]} (11... Qe8 $142) 12. O-O {[%emt 0:02:37]} (12. h4 $1 $16) 12... Qd7 {[%emt 0:00:33]} 13. Bd2 {[%emt 0:02:14] [#]} (13. Ng5 $16) 13... Na5 $146 {[%emt 0:02:01]} ({Predecessor:} 13... Rf7 14. g4 Nh4 15. Ng5 Bxg5 16. Bxg5 Ng6 17. Rxf7 Qxf7 18. Rf1 Qd7 19. h4 Rf8 {1-0 Ermenkov,E (2460)-Knaak,R (2495) Berlin East DSV 1982 (13)}) 14. Rad1 {[%emt 0:26:07]} (14. g4 {is interesting.} Nh4 15. Ng5 Ng6 16. b3) 14... c5 {[%emt 0:07:57]} 15. dxc5 {[%emt 0:05:06]} Bxc5+ {[%emt 0:00:08]} 16. Ned4 {[%emt 0:00:10]} Nc6 {[%emt 0:12:30]} 17. g4 {[%emt 0:10:22]} (17. Kh1 $11 {keeps the balance.}) 17... Nfxd4 $17 {[%emt 0:01:56]} 18. cxd4 {[%emt 0:00:22] [#]} Rxf3 $1 {[%emt 0:15:48][%mdl 64] Deflection} 19. Qxf3 {[%emt 0:00:10]} Bxd4+ {[%emt 0:00:11]} 20. Kh1 {[%emt 0:00:44][%cal Od2b4]} Nxe5 {[%emt 0:02:04]} (20... Bxb2 $17 21. Bc3 Bxc3 22. Qxc3 d4) 21. Qe2 $1 $11 {[%emt 0:06:19]} Nc6 {[%emt 0:01:15] Inhibits Bb4.} (21... Bxb2 $2 22. Bf4 $18) (21... Nf7 $5 {[%cal Rd4b2]}) 22. Bc3 {[%emt 0:03:05]} Bc5 {[%emt 0:00:09]} 23. Rf3 {[%emt 0:05:59]} ({Better is} 23. a3 $11) 23... Re8 {[%emt 0:01:57]} 24. Rh3 {[%emt 0:02:25]} d4 {[%emt 0:02:51]} (24... g6 {simplifies} 25. Rhd3 Bb6 26. Bf6 d4) 25. Qe4 {[%emt 0:01:45]} Qd5 {[%emt 0:00:08]} 26. Qxd5 {[%emt 0:00:13]} exd5 {[%emt 0:00:05]} 27. Re1 {[%emt 0:00:08]} Re3 {[%emt 0:00:05]} 28. Rhxe3 {[%emt 0:00:42]} (28. Rexe3 $1 $11 dxe3 29. Rh5) 28... dxe3 {[%emt 0:00:06][%mdl 4096] Endgame KRB-KBN} 29. b4 $1 {[%emt 0:00:10]} Bb6 {[%emt 0:03:38]} ({Don't play} 29... Bxb4 30. Bxb4 Nxb4 31. Rxe3 $16) (29... d4 30. bxc5 dxc3 31. Rxe3 $16) 30. b5 {[%emt 0:03:43]} Ne7 {[%emt 0:00:33]} (30... Nd8 $17 {And now ...d4 would win.} 31. Kg2 (31. Rd1 d4 $17) 31... d4) 31. Bb4 {[%emt 0:01:48]} (31. Rd1 $1 $15) 31... Ng6 $19 {[%emt 0:00:38]} 32. a4 $2 {[%emt 0:01:27]} (32. Rf1) 32... Nf4 $1 {[%emt 0:03:09]} 33. a5 {[%emt 0:00:44]} Bd4 {[%emt 0:00:06]} 34. Bd6 {[%emt 0:03:57]} g5 {[%emt 0:01:31]} 35. h4 {[%emt 0:00:53] [#]} h6 {[%emt 0:04:23]} ({Inferior is} 35... Nd3 36. Re2 $17) 36. hxg5 {[%emt 0:00:08]} hxg5 {[%emt 0:00:04]} 37. Be7 $2 {[%emt 0:00:24] [#]} (37. a6 bxa6 38. bxa6) 37... e2 $1 {[%emt 0:00:16] Hoping for ...Bc3.} 38. Bxg5 {[%emt 0:00:57]} Bf2 $2 {[%emt 0:00:10]} (38... Bc3 39. a6 bxa6 40. Rxe2 Nxe2 41. bxa6 Kf7) 39. Rb1 {[%emt 0:00:12]} e1=Q+ {[%emt 0:02:10]} 40. Rxe1 {[%emt 0:00:05]} Bxe1 {[%emt 0:00:05]} 41. Bxf4 {[%emt 0:00:14] aiming for a6.} Bxa5 {[%emt 0:00:09] KB-KB} 42. Kg2 {[%emt 0:01:21]} Kf7 $2 {[%emt 0:00:49]} (42... Bc3 $19 {...a5 would be deadly.} 43. Kf3 a5 44. bxa6 bxa6) 43. Kf3 $11 {[%emt 0:00:07]} Bc3 {[%emt 0:00:30]} 44. Ke3 {[%emt 0:00:43]} Ke6 {[%emt 0:00:34]} 45. Kd3 $1 {[%emt 0:00:04] Black must now prevent b6.} Bf6 {[%emt 0:00:26]} 46. Be3 {[%emt 0:01:04]} a6 {[%emt 0:00:07]} 47. bxa6 {[%emt 0:00:07]} bxa6 {[%emt 0:00:05] Strongly threatening ...a5.} 48. Bb6 {[%emt 0:00:59]} Be5 {[%emt 0:00:47]} 49. Bd8 {[%emt 0:00:30]} Kd7 {[%emt 0:00:37]} 50. Ba5 {[%emt 0:00:15]} Bf6 {[%emt 0:00:59]} 51. Bd2 {[%emt 0:00:10]} Ke6 {[%emt 0:00:18]} 52. Ba5 {[%emt 0:00:32]} Kf7 {[%emt 0:00:27]} 53. Bb6 {[%emt 0:00:09]} Kg6 {[%emt 0:00:08] ...Kg5 is the strong threat.} 54. Ke3 {[%emt 0:01:16]} Bc3 {[%emt 0:00:31]} (54... Kg5 $15 55. Kf3 Be5) 55. Bd4 {[%emt 0:00:13] The position is equal.} Bb4 {[%emt 0:00:15] Threatens to win with ...a5.} 56. Bb6 {[%emt 0:00:46]} Kf6 {[%emt 0:00:21]} 57. g5+ {[%emt 0:00:13]} Ke5 {Black had all chances to win.   Weighted Error Value: White=0.36/Black=0.27 (precise)} (57... Ke6 $5 {[%cal Ra6a5]}) 1/2-1/2